Workbook

Sheet Dati Gen
A1: 0 | I1: Pratica.110 | J1: Versione | K1: 1 | AA1: 0
B2: PRATICA SUPERBONUS 110% | D2: N. | E2: 1 | I2: ©2021 SIM srl - www.madosoft.it | O2: Titolare Licenza d'uso
B3: Tipologia | O3: Cognome
B4: Edificio Unifamiliare | E4: 1 | O4: Nome
B5: =IF('Dati Gen'!B4="Edificio Unifamiliare", IF('Dati Gen'!E4>1,"Inserire N.Unità Immobiliari =1",""),IF('Dati Gen'!E4<=1,"Inserire N.Unità Immobiliari >1","")) ->  | O5: Codice Fiscale
B6: Dati Edificio | O6: P.Iva
B7: Comune di Ubicazione | C7: ROMA | J7: CAP | O7: Indirizzo
B8: Indirizzo | C8: Via Vitaliano | J8: N. | K8: 23 | O8: CAP
B9: Dati Catastali | C9: Foglio | F9: Particella | H9: Sub. | J9: CAT. | O9: Città
B10: Anno di Costruzione Immobile | F10: Superficie Totale Disperdente : | O10: Provincia
B11: Autorizzazione Edilizia | C11: Edificio Storico senza Titolo Edilizio | H11: =IF(C11="Licenza Edilizia / Titolo Edilizio","N.",IF(C11="Concessione in Sanatoria","N.","")) ->  | J11: =IF(C11="Licenza Edilizia / Titolo Edilizio","Data",IF(C11="Concessione in Sanatoria","Data","")) ->  | O11: Telefono
O12: Mail
B13: Dati Committenti | O13: Codice Univoco
B14: Cognome Nome | C14: Rossi Mario | O14: Mail PEC
B15: Codice Fiscale | C15: cc
B16: Comune di Nascita | H16: Data Nascita | O16: Controlla Aggiornamenti
B17: Comune di Residenza | J17: CAP | O17: Licenza N. | P17: Versione DEMO | Q17: =IF(MID(P17,1,2)<>"AP","Acquista Licenza x 100 Attivazioni","") -> Acquista Licenza x 100 Attivazioni
B18: Indirizzo | J18: N.
B19: Telefono | G19: Email
B21: Cognome Nome
B22: Codice Fiscale
B23: Comune di Nascita | H23: Data Nascita
B24: Comune di Residenza | J24: CAP
B25: Indirizzo | J25: N.
B26: Telefono | G26: Email
B27: =IF(C21<>"",CONCATENATE(C14, " - ",C21),C14) -> Rossi Mario
B28: =IF(K8<>"",CONCATENATE(C8,", ",K8),C8) -> Via Vitaliano, 23
B30: Data Inizio Lavori | C30: 2021-03-15
B32: Relazione ex Legge 10/91 Depositata al Comune in Data | G32: 2021-03-15 | I32: Prot. N. | K32: 25658

Sheet Computo-Massimali
T2: PARCELLA | U2: imponibile | W2: c.cassa | Z2: iva | AC2: totale
C3: Verifica Massimali Superbonus | F3: ='Dati Gen'!B27 -> Rossi Mario | P3: ='Dati Gen'!I2 -> ©2021 SIM srl - www.madosoft.it | T3: Ape Ante | U3: 800.95 | W3: 0.04 | X3: =U3*W3 -> 32.038 | Z3: 0 | AA3: =(U3+X3)*Z3 -> 0 | AC3: =U3+X3+AA3 -> 832.988
C4: ='Dati Gen'!B4 -> Edificio Unifamiliare | D4: =IF('Dati Gen'!E4>1,'Dati Gen'!E4,"") ->  | F4: ='Dati Gen'!B28 -> Via Vitaliano, 23 | P4: ='Dati Gen'!I1 -> Pratica.110 | T4: Progettazione e DL | U4: 20725.26 | W4: 0.04 | X4: 829.0104 | Z4: 0 | AA4: =(U4+X4)*Z4 -> 0 | AC4: =U4+X4+AA4 -> 21554.2704
T5: Coord.SicurezzaEsec. | U5: 4000 | W5: 0.04 | X5: 160 | Z5: 0.22 | AA5: 915.2 | AC5: =U5+X5+AA5 -> 5075.2
F6: Imponibile | G6: %iva | H6: IVA | I6: Importo | T6: Ape Post | U6: 1028.45 | W6: 0.04 | X6: 41.138 | Z6: 0 | AA6: 0 | AC6: 1069.588
C7: Importo complessivo Lavori | F7: 134860.28 | G7: 0.1 | H7: =F7*G7 -> 13486.028 | I7: =F7+H7 -> 148346.308 | J7: =IF(ABS(H35-F7)>0.001,"Importo Lavori non corretto - completare Tabella 2","V.") -> V. | W7: 0.04 | X7: 0 | Z7: 0 | AA7: 0 | AC7: 0
C8: di cui Oneri/Lavori x Sicurezza | F8: 8032.08 | G8: 0.1 | H8: =F8*G8 -> 803.208 | I8: =F8+H8 -> 8835.288 | J8: =IF(ABS(G35-F8)>0.001,"Importo Sicurezza non corretto - completare Tabella 2 oppure Click su Proporzionale","V.") -> V. | W8: 0.04 | X8: 0 | Z8: 0 | AA8: 0 | AC8: 0
C9: Importo b.a. | F9: =F7-F8 -> 126828.2 | G9: 0.1 | H9: =F9*G9 -> 12682.82 | I9: =F9+H9 -> 139511.02 | J9: =IF(ABS(F35-F9)>0.001,"Importo b.a. non corretto - completare Tabella 2","V.") -> V. | W9: 0.04 | X9: 0 | Z9: 0 | AA9: 0 | AC9: 0
C10: Spese tecniche (compresa iva) | F10: =AC14 -> 30243.15363 | I10: =AC14 -> 30243.15363 | J10: =IF(ABS(I10-K35)>0.001,"Importo Spese Tecniche non corretto - completare Tabella 2 oppure Click su Proporzionale","V.") -> V. | W10: 0.04 | X10: 0 | Z10: 0 | AA10: 0 | AC10: 0
I11: =I7+I10 -> 178589.4616 | V11: =SUM(U3:V10) -> 26554.66 | X11: =SUM(X3:Y10) -> 1062.1864 | AA11: =SUM(AA3:AB10) -> 915.2 | AC11: =SUM(AC3:AC8) -> 28532.0464
U12: imponibile | W12: c.cassa | Z12: iva | AC12: totale
T13: Visto Conformità | U13: 0.01 | V13: =U13*F7 -> 1348.6028 | W13: 0.04 | X13: =V13*W13 -> 53.944112 | Z13: 0.22 | AA13: =(V13+X13)*Z13 -> 308.5603206 | AC13: =V13+X13+AA13 -> 1711.107233
U14: =V13+V11 -> 27903.2628 | X14: =X13+X11 -> 1116.130512 | AA14: =AA13+AA11 -> 1223.760321 | AC14: =SUM(U14:AB14) -> 30243.15363
C15: Lavorazione | F15: Importo Lavori | G15: Incidenza Sicurezza | H15: Imponibile | I15: Iva | J15: Importo c.iva | K15: Spese tecniche | L15: Totale | M15: Sup. Interv. | N15: Costo Unitario | P15: Verifica Costo Un. | Q15: Detrazione Ammessa | S15: Verifica Max | T15: Massimale costo | U15: Massimale spesa
C16: Isolamento pareti perimetrali | E16: Esterno | F16: 20381.52 | G16: 1290.769712 | H16: =SUM(F16:G16) -> 21672.28971 | I16: =F16*$G$9+G16*$G$8 -> 2167.228971 | J16: =H16+I16 -> 23839.51868 | K16: 4860.129211 | L16: =SUM(J16:K16) -> 28699.64789 | M16: 308.34 | N16: =IF(ISNUMBER(F16)=TRUE,F16/M16,0) -> 66.10079782 | P16: =IF(T16<>0,IF(N16>T16,"KO","ok"),"ok") -> ok | Q16: =IF(L16<=U16,L16*1.1,U16*1.1) -> 31569.61268 | S16: =IF(L16>Q16,"KO",IF(L16>U16,"ok<","ok")) -> ok | T16: =IF(E16="Parete Ventilata",200,IF(E16="Interno",80,150)) -> 150 | U16: =IF('Dati Gen'!$B$4="Edificio Unifamiliare",50000,IF('Dati Gen'!$E$4>8,30000*'Dati Gen'!$E$4,40000*'Dati Gen'!$E$4)) -> 50000
C17: Isolamento coperture | E17: Esterno | F17: 14415.66 | G17: 912.9494416 | H17: =SUM(F17:G17) -> 15328.60944 | I17: =F17*$G$9+G17*$G$8 -> 1532.860944 | J17: =H17+I17 -> 16861.47039 | K17: 3437.524292 | L17: =SUM(J17:K17) -> 20298.99468 | N17: =IF(ISNUMBER(M17)=TRUE,F17/M17,0) -> 0 | P17: =IF(T17<>0,IF(N17>T17,"KO","ok"),"ok") -> ok | Q17: 22328.89415 | S17: ok | T17: =IF(E17="Copertura Ventilata",250,IF(E17="Interno",100,230)) -> 230 | U17: =IF('Dati Gen'!$B$4="Edificio Unifamiliare",50000,IF('Dati Gen'!$E$4>8,30000*'Dati Gen'!$E$4,40000*'Dati Gen'!$E$4)) -> 50000 | AA17: Cessione Credito
C18: Isolamento Pavimenti | E18: Esterno | G18: 0 | H18: 0 | I18: 0 | J18: =H18+I18 -> 0 | K18: 0 | L18: =SUM(J18:K18) -> 0 | M18: 60 | N18: 0 | P18: ok | Q18: 0 | S18: ok | T18: =IF(E18="Interno/terreno",150,120) -> 120 | U18: =IF('Dati Gen'!$B$4="Edificio Unifamiliare",50000,IF('Dati Gen'!$E$4>8,30000*'Dati Gen'!$E$4,40000*'Dati Gen'!$E$4)) -> 50000 | AA18: Quota Impresa | AC18: Quota Tecnico
C19: Isolamento sup. verticali e/o orizzontali | F19: =SUM(F16:F18) -> 34797.18 | G19: =SUM(G16:G18) -> 2203.719153 | H19: 37000.89915 | I19: =SUM(I16:I18) -> 3700.089915 | J19: =SUM(J16:J18) -> 40700.98907 | K19: =SUM(K16:K18) -> 8297.653503 | L19: =SUM(L16:L18) -> 48998.64257 | M19: =SUM(M16:M18) -> 368.34 | N19: 94.47027203 | P19: ok | Q19: 53898.50683 | S19: ok | U19: =IF('Dati Gen'!$B$4="Edificio Unifamiliare",50000,IF('Dati Gen'!$E$4>8,30000*'Dati Gen'!$E$4,40000*'Dati Gen'!$E$4)) -> 50000 | AA19: =IF(Q19<>0,J19*Q19/L19,0) -> 44771.08798 | AC19: =IF(Q19<>0,K19*Q19/L19,0) -> 9127.418854
C20: Serramenti | E20: Zone A, B e C | F20: 0 | G20: 0 | H20: 0 | I20: =F20*$G$9+G20*$G$8 -> 0 | J20: =H20+I20 -> 0 | K20: 0 | L20: =SUM(J20:K20) -> 0 | N20: 0 | P20: ok | Q20: 0 | S20: ok | T20: =IF(E20="Zone A, B e C",550,650) -> 550 | U20: =60000*'Dati Gen'!$E$4/1.1 -> 54545.45455 | AA20: 0 | AC20: 0
C21: Serramenti + chiusure oscuranti | E21: Zone D, E ed F | F21: 11582.37 | G21: 733.5160668 | H21: 12315.88607 | I21: 1231.588607 | J21: 13547.47467 | K21: 2761.904655 | L21: =SUM(J21:K21) -> 16309.37933 | M21: 40.19 | N21: 288.1903459 | P21: =IF(T21<>0,IF(N21>T21,"KO","ok"),"ok") -> ok | Q21: 17940.31726 | S21: ok | T21: =IF(E21="Zone A, B e C",650,750) -> 750 | U21: =60000*'Dati Gen'!$E$4/1.1 -> 54545.45455 | AA21: 14902.22214 | AC21: 3038.09512
C22: Schermature solari e chiusure Oscuranti | F22: 0 | G22: 0 | H22: =SUM(F22:G22) -> 0 | I22: 0 | J22: 0 | K22: 0 | L22: =SUM(J22:K22) -> 0 | N22: 0 | P22: ok | Q22: 0 | S22: ok | T22: 230 | U22: =60000*'Dati Gen'!$E$4/1.1 -> 54545.45455 | AA22: 0 | AC22: 0
C23: Solare Termico - con collettori solari | E23: Piani Vetrati | F23: 4925.08 | G23: 311.9072617 | H23: 5236.987262 | I23: 523.6987262 | J23: 5760.685988 | K23: 1174.422976 | L23: 6935.108963 | N23: 0 | P23: ok | Q23: 7628.61986 | S23: ok | T23: =IF(E23="Scoperti",750,IF(E23="Piani vetrati",1000,1250)) -> 1000 | U23: =IF('Dati Gen'!$B$4="Edificio Unifamiliare",30000,IF('Dati Gen'!$E$4>8,15000*'Dati Gen'!$E$4,20000*'Dati Gen'!$E$4)) -> 30000 | AA23: 6336.754587 | AC23: 1291.865273
C24: Solare Fotovoltaico kWp | D24: 6 | E24: Piani Vetrati | F24: 13474.07 | G24: 853.318175 | H24: 14327.38818 | I24: 1432.738818 | J24: 15760.12699 | K24: 3212.994975 | L24: 18973.12197 | N24: 0 | P24: ok | Q24: =IF(L24<=U24,L24*1.1,U24*1.1) -> 15840 | S24: KO | T24: =IF(E24="Scoperti",750,IF(E24="Piani vetrati",1000,1250)) -> 1000 | U24: =IF(C24="Solare Fotovoltaico kWp",IF(D24*2400<48000*'Dati Gen'!$E$4,D24*2400,48000*'Dati Gen'!$E$4),IF(D24*1600<48000*'Dati Gen'!$E$4,D24*1600,48000*'Dati Gen'!$E$4)) -> 14400 | AA24: =IF(Q24<>0,J24*Q24/L24,0) -> 13157.58218 | AC24: =IF(Q24<>0,K24*Q24/L24,0) -> 2682.417817
C25: Sistema di Accumulo kWh | D25: 10 | F25: 6455.26 | G25: 408.8141655 | H25: 6864.074165 | I25: 686.4074165 | J25: 7550.481582 | K25: 1539.30609 | L25: 9089.787672 | N25: 0 | P25: ok | Q25: =IF(L25<=U25,L25*1.1,U25*1.1) -> 9998.76644 | S25: =IF(L25>Q25,"KO",IF(L25>U25,"ok<","ok")) -> ok | U25: =IF(D25*1000<48000*'Dati Gen'!$E$4,D25*1000,48000*'Dati Gen'!$E$4) -> 10000 | AA25: =IF(Q25<>0,J25*Q25/L25,0) -> 8305.52974 | AC25: =IF(Q25<>0,K25*Q25/L25,0) -> 1693.236699
C26: Impianti climatizzazione e ACS | F26: 21332.86 | G26: 1351.01845 | H26: =SUM(F26:G26) -> 22683.87845 | I26: 2268.387845 | J26: 24952.26629 | K26: 5086.983497 | L26: 30039.24979 | N26: 0 | P26: vedi All.I | Q26: 33000 | S26: ok< | T26: vedi All.I | U26: =IF('Dati Gen'!$B$4="Edificio Unifamiliare",30000,IF('Dati Gen'!$E$4>8,15000*'Dati Gen'!$E$4,20000*'Dati Gen'!$E$4)) -> 30000 | AA26: 27411.62957 | AC26: 5588.370434
C27: Impianti Biomassa | F27: 0 | G27: 0 | H27: 0 | I27: 0 | J27: 0 | K27: 0 | L27: 0 | N27: 0 | P27: vedi All.I | Q27: 0 | S27: ok | T27: vedi All.I | U27: =IF('Dati Gen'!$B$4="Edificio Unifamiliare",30000,IF('Dati Gen'!$E$4>8,15000*'Dati Gen'!$E$4,20000*'Dati Gen'!$E$4)) -> 30000 | AA27: 0 | AC27: 0
C28: Sistemi di Building Automation | F28: 5541.15 | G28: 350.9232181 | H28: 5892.073218 | I28: 589.2073218 | J28: 6481.28054 | K28: 1321.329563 | L28: 7802.610103 | N28: 0 | P28: =IF(T28<>0,IF(N28>T28,"KO","ok"),"ok") -> ok | Q28: 8582.871113 | S28: ok | T28: 50 | U28: =15000*'Dati Gen'!$E$4 -> 15000 | AA28: 7129.408594 | AC28: 1453.462519
C29: Colonnine di Ricarica | F29: 0 | G29: 0 | H29: 0 | I29: 0 | J29: 0 | K29: 0 | L29: 0 | N29: 0 | P29: =IF(T29<>0,IF(N29>T29,"KO","ok"),"ok") -> ok | Q29: 0 | S29: ok | U29: =IF('Dati Gen'!$B$4="Edificio Unifamiliare",2000,IF('Dati Gen'!$E$4>8,1200*'Dati Gen'!$E$4,1500*'Dati Gen'!$E$4)) -> 2000 | AA29: 0 | AC29: 0
C30: SismaBonus | G30: 0 | H30: 0 | I30: 0 | J30: 0 | K30: 0 | L30: 0 | N30: 0 | P30: =IF(T30<>0,IF(N30>T30,"KO","ok"),"ok") -> ok | Q30: 0 | S30: ok | U30: =IF('Dati Gen'!$B$4="Edificio Unifamiliare",96000,96000*'Dati Gen'!$E$4) -> 96000 | AA30: 0 | AC30: 0
N31: Totale interventi 110 | Q31: =SUM(Q19:Q30) -> 146889.0815
C33: Lavori Ristrutturazione | E33: 0.5 | F33: 28720.23 | G33: 1818.86351 | H33: =SUM(F33:G33) -> 30539.09351 | I33: =F33*$G$9+G33*$G$8 -> 3053.909351 | J33: =H33+I33 -> 33593.00286 | K33: 6848.558341 | L33: =SUM(J33:K33) -> 40441.5612 | N33: =IF(ISNUMBER(M33)=TRUE,H33/M33,0) -> 0 | P33: =IF(T33<>0,IF(N33>T33,"KO","ok"),"ok") -> ok | Q33: =IF(L33<=U33*E33,L33*E33,U33*E33) -> 20220.7806 | S33: =IF(L33>U33,"KO","ok<") -> ok< | T33: 0 | U33: =96000*'Dati Gen'!E4 -> 96000 | AA33: =IF(Q33<>0,J33*Q33/L33,0) -> 16796.50143 | AC33: =IF(Q33<>0,K33*Q33/L33,0) -> 3424.279171
C34: - | E34: 0 | G34: 0 | H34: 0 | I34: 0 | J34: =H34+I34 -> 0 | K34: 0 | L34: 0 | N34: =IF(ISNUMBER(M34)=TRUE,H34/M34,0) -> 0 | P34: =IF(T34<>0,IF(N34>T34,"KO","ok"),"ok") -> ok | Q34: =IF(L34<=U34*E34,L34*E34,U34*E34) -> 0 | S34: =IF(L34>U34,"KO","ok<") -> ok< | T34: 0 | U34: =96000*'Dati Gen'!E4 -> 96000 | AA34: =IF(Q34<>0,J34*Q34/L34,0) -> 0 | AC34: =IF(Q34<>0,K34*Q34/L34,0) -> 0
C35: Totali x verifica | F35: =SUM(F19:F34) -> 126828.2 | G35: =SUM(G19:G34) -> 8032.08 | H35: =SUM(H19:H34) -> 134860.28 | J35: =SUM(J19:J34) -> 148346.308 | K35: =SUM(K19:K34) -> 30243.1536 | L35: =SUM(L19:L34) -> 178589.4616 | N35: Totale altri interventi | Q35: =SUM(Q33:Q34) -> 20220.7806 | AA35: =SUM(AA16:AA34) -> 138810.7162 | AC35: =SUM(AC16:AC34) -> 28299.14589
G37: Importo Lavori + Iva + Spese Tecniche Comp. Iva : | H37: =L35 -> 178589.4616 | I37: =IF(ABS(H37-I11)<=0.001,"V.","Importo Lavori non corretto - Corregere Imponibili Tabella 1 oppure Completare Tabella 2") -> V.
G38: Importo Detrazione Fiscale : | H38: =Q31+Q35 -> 167109.8621
G40: Quota % effettiva per cessione credito a Banca o Impresa Interventi 110: | H40: =100/110 -> 0.9090909091 | I40: =H40*110 -> 100
G41: Quota % effettiva per cessione credito a Banca o Impresa Interventi NO 110: | H41: 0.875 | I41: =H41*100 -> 87.5 | J41: Quota Impresa | K41: Quota Tec.
G42: Netto a seguito Cessione Credito a Banca/Impresa : | H42: =H40*Q31+H41*Q35 -> 151228.7117 | J42: =AA35*H42/H38 -> 125618.9522 | K42: =AC35*H42/H38 -> 25609.75947
G43: Quota a carico cliente : | H43: =H37-H42 -> 27360.74994 | J43: =H43*AA35/H38 -> 22727.35581 | K43: =H43*AC35/H38 -> 4633.394129
G44: =IF(H40=0,"Detrazione Fiscale spettante : ","") ->  | H44: =IF(H40=0,Q35,"") ->  | J44: =SUM(J42:J43) -> 148346.308 | K44: =SUM(K42:K43) -> 30243.1536

Sheet SAL.30%
C3: STATO AVANZAMENTO LAVORI N.1 | F3: ='Dati Gen'!B27 -> Rossi Mario | N3: ='Dati Gen'!I2 -> ©2021 SIM srl - www.madosoft.it
C4: Data 27/03/2021 | F4: ='Dati Gen'!B28 -> Via Vitaliano, 23 | N4: ='Dati Gen'!I1 -> Pratica.110
E6: Imponibile | G6: %iva | H6: IVA | I6: Importo
C7: Importo complessivo Lavori | E7: ='Computo-Massimali'!F7 -> 134860.28 | G7: ='Computo-Massimali'!G7 -> 0.1 | H7: ='Computo-Massimali'!H7 -> 13486.028 | I7: ='Computo-Massimali'!I7 -> 148346.308
C8: di cui Oneri/Lavori x Sicurezza | E8: ='Computo-Massimali'!F8 -> 8032.08 | G8: ='Computo-Massimali'!G8 -> 0.1 | H8: ='Computo-Massimali'!H8 -> 803.208 | I8: ='Computo-Massimali'!I8 -> 8835.288
C9: Importo b.a. | E9: ='Computo-Massimali'!F9 -> 126828.2 | G9: ='Computo-Massimali'!G9 -> 0.1 | H9: ='Computo-Massimali'!H9 -> 12682.82 | I9: ='Computo-Massimali'!I9 -> 139511.02
C10: Spese tecniche (compresa iva) | E10: ='Computo-Massimali'!F10 -> 30243.15363 | G10: ='Computo-Massimali'!G10 -> 0 | H10: ='Computo-Massimali'!H10 -> 0 | I10: ='Computo-Massimali'!I10 -> 30243.15363
I11: ='Computo-Massimali'!I11 -> 178589.4616
C12: Lavori Eseguiti
C13: Oneri/Lavori x Sicurezza
C15: Lavorazione | E15: Importo Lavori Eseguiti | G15: Incidenza Sicurezza | H15: Imponibile | I15: Iva | J15: Importo c.iva | K15: Spese tecniche | L15: Totale | M15: % SAL | N15: Detrazione | Q15: ='Computo-Massimali'!U15 -> Massimale spesa | S15: Ripartizione Spese Tecniche | T15: Fatturare
C16: ='Computo-Massimali'!C16 -> Isolamento pareti perimetrali | E16: 6500 | G16: =$E$13*E16/$E$9 -> 0 | H16: =SUM(E16:G16) -> 6500 | I16: =H16*'Computo-Massimali'!$G$9 -> 650 | J16: =SUM(H16:I16) -> 7150 | K16: ='Computo-Massimali'!$AC$14*J16/$I$7 -> 1457.660466 | L16: =SUM(J16:K16) -> 8607.660466 | M16: =IF(L16>0,L16/'Computo-Massimali'!L16,"") -> 0.2999221627 | N16: =IF(L16<=Q16,L16*1.1,Q16*1.1) -> 9468.426513 | Q16: ='Computo-Massimali'!U16 -> 50000 | S16: =IF('Computo-Massimali'!T3<>0,'Computo-Massimali'!T3,"-") -> Ape Ante | T16: =$K$39*'Computo-Massimali'!AC3/'Computo-Massimali'!$AC$14 -> 40.14838172
C17: ='Computo-Massimali'!C17 -> Isolamento coperture | G17: =$E$13*E17/$E$9 -> 0 | H17: =SUM(E17:G17) -> 0 | I17: =H17*'Computo-Massimali'!$G$9 -> 0 | J17: =SUM(H17:I17) -> 0 | K17: ='Computo-Massimali'!$AC$14*J17/$I$7 -> 0 | L17: =SUM(J17:K17) -> 0 | M17: =IF(L17>0,L17/'Computo-Massimali'!L17,"") ->  | N17: 0 | Q17: ='Computo-Massimali'!U17 -> 50000 | S17: =IF('Computo-Massimali'!T4<>0,'Computo-Massimali'!T4,"-") -> Progettazione e DL | T17: =$K$39*'Computo-Massimali'!AC4/'Computo-Massimali'!$AC$14 -> 1038.8734
C18: ='Computo-Massimali'!C18 -> Isolamento Pavimenti | G18: =$E$13*E18/$E$9 -> 0 | H18: 0 | I18: =H18*'Computo-Massimali'!$G$9 -> 0 | J18: 0 | K18: ='Computo-Massimali'!$AC$14*J18/$I$7 -> 0 | L18: 0 | M18: =IF(L18>0,L18/'Computo-Massimali'!L18,"") ->  | N18: 0 | Q18: ='Computo-Massimali'!U18 -> 50000 | S18: =IF('Computo-Massimali'!T5<>0,'Computo-Massimali'!T5,"-") -> Coord.SicurezzaEsec. | T18: =$K$39*'Computo-Massimali'!AC5/'Computo-Massimali'!$AC$14 -> 244.6146486
C19: ='Computo-Massimali'!C19 -> Isolamento sup. verticali e/o orizzontali | E19: =SUM(E16:F18) -> 6500 | G19: =SUM(G16:G18) -> 0 | H19: =SUM(H16:H18) -> 6500 | I19: =SUM(I16:I18) -> 650 | J19: =SUM(J16:J18) -> 7150 | K19: =SUM(K16:K18) -> 1457.660466 | L19: =IF('Dati Gen'!P17="Versione DEMO","Versione DEMO",SUM(J19:K19)) -> Versione DEMO | M19: =IF(L19>0,L19/'Computo-Massimali'!L19,"") ->  | N19: 55000 | Q19: ='Computo-Massimali'!U19 -> 50000 | S19: =IF('Computo-Massimali'!T6<>0,'Computo-Massimali'!T6,"-") -> Ape Post | T19: =$K$39*'Computo-Massimali'!AC6/'Computo-Massimali'!$AC$14 -> 51.55203593
C20: ='Computo-Massimali'!C20 -> Serramenti | G20: =$E$13*E20/$E$9 -> 0 | H20: 0 | I20: =H20*'Computo-Massimali'!$G$9 -> 0 | J20: 0 | K20: ='Computo-Massimali'!$AC$14*J20/$I$7 -> 0 | L20: 0 | M20: =IF(L20>0,L20/'Computo-Massimali'!L20,"") ->  | N20: 0 | Q20: ='Computo-Massimali'!U20 -> 54545.45455 | S20: =IF('Computo-Massimali'!T7<>0,'Computo-Massimali'!T7,"-") -> - | T20: =$K$39*'Computo-Massimali'!AC7/'Computo-Massimali'!$AC$14 -> 0
C21: ='Computo-Massimali'!C21 -> Serramenti + chiusure oscuranti | G21: 0 | H21: 0 | I21: =H21*'Computo-Massimali'!$G$9 -> 0 | J21: 0 | K21: ='Computo-Massimali'!$AC$14*J21/$I$7 -> 0 | L21: 0 | M21: =IF(L21>0,L21/'Computo-Massimali'!L21,"") ->  | N21: 0 | Q21: ='Computo-Massimali'!U21 -> 54545.45455 | S21: =IF('Computo-Massimali'!T8<>0,'Computo-Massimali'!T8,"-") -> - | T21: =$K$39*'Computo-Massimali'!AC8/'Computo-Massimali'!$AC$14 -> 0
C22: ='Computo-Massimali'!C22 -> Schermature solari e chiusure Oscuranti | G22: 0 | H22: 0 | I22: =H22*'Computo-Massimali'!$G$9 -> 0 | J22: 0 | K22: ='Computo-Massimali'!$AC$14*J22/$I$7 -> 0 | L22: 0 | M22: =IF(L22>0,L22/'Computo-Massimali'!L22,"") ->  | N22: 0 | Q22: ='Computo-Massimali'!U22 -> 54545.45455 | S22: =IF('Computo-Massimali'!T9<>0,'Computo-Massimali'!T9,"-") -> - | T22: =$K$39*'Computo-Massimali'!AC9/'Computo-Massimali'!$AC$14 -> 0
C23: ='Computo-Massimali'!C23 -> Solare Termico - con collettori solari | G23: 0 | H23: 0 | I23: =H23*'Computo-Massimali'!$G$9 -> 0 | J23: 0 | K23: ='Computo-Massimali'!$AC$14*J23/$I$7 -> 0 | L23: 0 | M23: =IF(L23>0,L23/'Computo-Massimali'!L23,"") ->  | N23: 0 | Q23: ='Computo-Massimali'!U23 -> 30000 | S23: =IF('Computo-Massimali'!T10<>0,'Computo-Massimali'!T10,"-") -> - | T23: =$K$39*'Computo-Massimali'!AC10/'Computo-Massimali'!$AC$14 -> 0
C24: ='Computo-Massimali'!C24 -> Solare Fotovoltaico kWp | D24: ='Computo-Massimali'!D24 -> 6 | G24: 0 | H24: 0 | I24: =H24*'Computo-Massimali'!$G$9 -> 0 | J24: 0 | K24: ='Computo-Massimali'!$AC$14*J24/$I$7 -> 0 | L24: 0 | M24: =IF(L24>0,L24/'Computo-Massimali'!L24,"") ->  | N24: 0 | Q24: ='Computo-Massimali'!U24 -> 14400 | S24: =IF('Computo-Massimali'!T13<>0,'Computo-Massimali'!T13,"-") -> Visto Conformità | T24: =$K$39*'Computo-Massimali'!AC13/'Computo-Massimali'!$AC$14 -> 82.472
C25: ='Computo-Massimali'!C25 -> Sistema di Accumulo kWh | D25: ='Computo-Massimali'!D25 -> 10 | G25: 0 | H25: 0 | I25: =H25*'Computo-Massimali'!$G$9 -> 0 | J25: 0 | K25: ='Computo-Massimali'!$AC$14*J25/$I$7 -> 0 | L25: 0 | M25: =IF(L25>0,L25/'Computo-Massimali'!L25,"") ->  | N25: 0 | Q25: ='Computo-Massimali'!U25 -> 10000 | T25: =SUM(T16:T24) -> 1457.660466
C26: ='Computo-Massimali'!C26 -> Impianti climatizzazione e ACS | G26: 0 | H26: 0 | I26: =H26*'Computo-Massimali'!$G$9 -> 0 | J26: 0 | K26: ='Computo-Massimali'!$AC$14*J26/$I$7 -> 0 | L26: =IF('Dati Gen'!P17="Versione DEMO","Versione DEMO",SUM(J26:K26)) -> Versione DEMO | M26: =IF(L26>0,L26/'Computo-Massimali'!L26,"") ->  | N26: 33000 | Q26: ='Computo-Massimali'!U26 -> 30000
C27: ='Computo-Massimali'!C27 -> Impianti Biomassa | G27: 0 | H27: 0 | I27: =H27*'Computo-Massimali'!$G$9 -> 0 | J27: 0 | K27: ='Computo-Massimali'!$AC$14*J27/$I$7 -> 0 | L27: 0 | M27: =IF(L27>0,L27/'Computo-Massimali'!L27,"") ->  | N27: 0 | Q27: ='Computo-Massimali'!U27 -> 30000
C28: ='Computo-Massimali'!C28 -> Sistemi di Building Automation | G28: 0 | H28: 0 | I28: =H28*'Computo-Massimali'!$G$9 -> 0 | J28: 0 | K28: ='Computo-Massimali'!$AC$14*J28/$I$7 -> 0 | L28: 0 | M28: =IF(L28>0,L28/'Computo-Massimali'!L28,"") ->  | N28: 0 | Q28: ='Computo-Massimali'!U28 -> 15000
C29: ='Computo-Massimali'!C29 -> Colonnine di Ricarica | G29: 0 | H29: 0 | I29: =H29*'Computo-Massimali'!$G$9 -> 0 | J29: 0 | K29: ='Computo-Massimali'!$AC$14*J29/$I$7 -> 0 | L29: 0 | M29: =IF(L29>0,L29/'Computo-Massimali'!L29,"") ->  | N29: 0 | Q29: ='Computo-Massimali'!U29 -> 2000
C30: ='Computo-Massimali'!C30 -> SismaBonus | G30: 0 | H30: 0 | I30: =H30*'Computo-Massimali'!$G$9 -> 0 | J30: 0 | K30: ='Computo-Massimali'!$AC$14*J30/$I$7 -> 0 | L30: 0 | M30: =IF(L30>0,L30/'Computo-Massimali'!L30,"") ->  | N30: 0 | Q30: ='Computo-Massimali'!U30 -> 96000
E31: =SUM(E19:F30) -> 6500 | G31: =SUM(G19:G30) -> 0 | H31: 6500 | I31: 650 | J31: 7150 | K31: 1457.660466 | L31: =SUM(L19:L30) -> 0 | N31: =SUM(N19:N30) -> 88000
C33: ='Computo-Massimali'!C33 -> Lavori Ristrutturazione | D33: ='Computo-Massimali'!E33 -> 0.5 | G33: =$E$13*E33/$E$9 -> 0 | H33: =SUM(E33:G33) -> 0 | I33: =H33*'Computo-Massimali'!$G$9 -> 0 | J33: =SUM(H33:I33) -> 0 | K33: ='Computo-Massimali'!$AC$14*J33/$I$7 -> 0 | L33: =SUM(J33:K33) -> 0 | M33: =IF(L33>0,L33/'Computo-Massimali'!L33,"") ->  | N33: =IF(L33<=Q33*D33,L33*D33,U33*D33) -> 0 | Q33: ='Computo-Massimali'!U33 -> 96000
C34: ='Computo-Massimali'!C34 -> - | D34: ='Computo-Massimali'!E34 -> 0 | G34: 0 | H34: 0 | I34: =H34*'Computo-Massimali'!$G$9 -> 0 | J34: 0 | K34: ='Computo-Massimali'!$AC$14*J34/$I$7 -> 0 | L34: 0 | M34: =IF(L34>0,L34/'Computo-Massimali'!L34,"") ->  | N34: =IF(L34<=Q34*D34,L34*D34,U34*D34) -> 0 | Q34: ='Computo-Massimali'!U34 -> 96000
E35: =SUM(E33:F34) -> 0 | G35: =SUM(G33:G34) -> 0 | H35: =SUM(H33:H34) -> 0 | I35: =SUM(I33:I34) -> 0 | J35: =SUM(J33:J34) -> 0 | K35: 0 | L35: 0 | N35: =SUM(N33:N34) -> 0
E38: =E15 -> Importo Lavori Eseguiti | G38: Incidenza Sicurezza | H38: Imponibile | I38: =I15 -> Iva | J38: Importo c.iva | K38: Spese tecniche | L38: Totale | M38: % SAL | N38: Detrazione
C39: Totali SAL N.1 | E39: =E31+E35 -> 6500 | G39: =G31+G35 -> 0 | H39: =H31+H35 -> 6500 | I39: =I35+I31 -> 650 | J39: =J35+J31 -> 7150 | K39: =K35+K31 -> 1457.660466 | L39: =SUM(J39:K39) -> 8607.660466 | M39: =E39/E9 -> 0.05125043169 | N39: =N35+N31 -> 88000 | P39: =IF(M39>=30%,"V.","") -> 
K41: =IF(M39>=30%,"","SAL inferiore 30%") -> SAL inferiore 30%

Sheet Enea SAL 30%
B2: Tipologia Edificio | C2: ='Dati Gen'!B4 -> Edificio Unifamiliare | M2: https://detrazionifiscali.enea.it/creaasseverazione.asp
B3: Data Inizio Lavori | C3: ='Dati Gen'!C30 -> 2021-03-15
B5: Comune Ubicazione | C5: ='Dati Gen'!C7 -> ROMA
B6: Comune Montano | C6: X | D6: SI | F6: NO | G6: Elenco Comuni Montani
B7: Interessato Infrazione | D7: SI | E7: X | F7: NO | G7: Elenco Comuni Infrazioni
B8: Intervento comma 4-Ter | D8: SI | E8: X | F8: NO | G8: 160% Zone Terremotate
B10: Indirizzo | C10: ='Dati Gen'!C8 -> Via Vitaliano | I10: N.Civico | J10: ='Dati Gen'!K8 -> 23 | K10: CAP | L10: ='Dati Gen'!K7 -> 0
B11: Anno di Costruzione Immobile | C11: ='Dati Gen'!C10 -> 0 | G11: ='Dati Gen'!F10 -> Superficie Totale Disperdente : | L11: ='Dati Gen'!K10 -> 0
B12: Edificio in area Metanizzata | C12: X | D12: SI | F12: NO
B13: Autorizzazione Edilizia | C13: ='Dati Gen'!C11 -> Edificio Storico senza Titolo Edilizio | I13: ='Dati Gen'!H11 ->  | J13: =IF('Dati Gen'!I11<>"",'Dati Gen'!I11,"") ->  | K13: ='Dati Gen'!J11 ->  | L13: =IF('Dati Gen'!I13<>"",'Dati Gen'!I13,"") -> 
B15: ='Dati Gen'!B32 -> Relazione ex Legge 10/91 Depositata al Comune in Data | H15: =IF('Dati Gen'!G32<>"",'Dati Gen'!G32,"") -> 44270 | J15: Prot. N. | L15: =IF('Dati Gen'!K32<>"",'Dati Gen'!K32,"") -> 25658
B18: intervento di isolamento termico delle superfici opache verticali, orizzontali e inclinate
B19: Descrizione | G19: Superficie mq | H19: Trasm. Ante | I19: Trasm. Post | J19: Trasm.P. YIE | K19: Confine | L19: Coiben-tazione | M19: Realizzati mq
B20: Pareti Verticali Mattoni Pieni 30cm | G20: 50 | H20: 3 | I20: 1.26 | J20: 0.03 | K20: Esterno | L20: Esterna | M20: 30
B21: Pareti Verticali Pietrame 50cm | G21: 20 | K21: - | L21: -
B22: Coperture Legno | K22: - | L22: -
B23: Coperture Acciaio | K23: - | L23: -
B24: Pavimenti | K24: - | L24: -
K25: - | L25: -
K26: - | L26: -
K27: - | L27: -
K28: - | L28: -
B30: Superficie Totale disperdente oggetto di intervento [mq] | J30: =SUM(G20:G28) -> 70
B31: Spesa Massima Ammissibile | J31: ='SAL.30%'!Q19 -> 50000
B32: Costo Complessivo Previsto in progetto | J32: ='Computo-Massimali'!L19 -> 48998.64257
B33: Spesa Ammessa | J33: =IF(J32<J31,J32,J31) -> 48998.64257
B34: Costo Lavori Realizzati | J34: ='SAL.30%'!L19 -> Versione DEMO
B35: di cui ammessi | J35: =IF(J34<J33,J34,J33) -> 48998.64257
B36: Risparmio di energia primaria non rinnovabile di progetto [kWh/anno]
B40: Intervento di sostituzione degli impianti di climatizzazione invernale esistenti
B41: Descrizione | G41: Tipo Sostituito | H41: P.Nom Sostituito | I41: P.Nom Nuova | J41: Rendim Nomin. | K41: Destinata | L41: Efficienza Riscaldam. hs | M41: Efficienza ACS hw | N41: Tipo Aliment. | O41: Classe Dispositivo Termoreg. Evoluto | P41: Tipo PDC | Q41: Pot. Elettr. Assorb | R41: COP | S41: Superfic. Risc. Da PDC | AD41: Tipo Sostituito
B42: Caldaia a Condensazione | G42: - | H42: 24 | I42: 26 | J42: 0.03 | K42: - | L42: 0 | N42: - | O42: - | P42: Salamoia/Acqua | AD42: -
B43: Pompe calore PDC compr. vapore el. sonde geot. | G43: - | K43: - | N43: - | O43: - | P43: - | AD43: Caldaia Standard
B44: Coperture Legno | G44: - | K44: - | N44: - | O44: - | P44: - | AD44: Caldaia Bassa Temp.
B45: Coperture Acciaio | G45: - | K45: - | N45: - | O45: - | P45: - | AD45: Caldaia Condens. Gas
B46: Pavimenti | G46: - | K46: - | N46: - | O46: - | P46: - | AD46: Caldaia Condens.Gasolio
G47: - | K47: - | N47: - | O47: - | P47: - | AD47: Teleriscaldamento
G48: - | K48: - | N48: - | O48: - | P48: - | AD48: Impianto biomassa
AD49: Altro
B50: Destinati a : Climatizzazione Invernale | G50: X | J50: Spesa Massima Ammissibile | Q50: ='Computo-Massimali'!U26 -> 30000
B51: Climatizzazione estiva | J51: Costo Complessivo Previsto in progetto | Q51: ='Computo-Massimali'!L26 -> 30039.24979
B52: prod. di acqua calda sanitaria | J52: Spesa Ammessa | Q52: =IF(Q51<Q50,Q51,Q50) -> 30000
J53: Costo Lavori Realizzati | Q53: ='SAL.30%'!L26 -> Versione DEMO
J54: di cui ammessi | Q54: =IF(Q53<Q52,Q53,Q52) -> 30000
J55: Risparmio di energia primaria non rinnovabile di progetto [kWh/anno]
B57: Sostituzione degli infissi
B58: Descrizione | G58: Telaio Prima | H58: Vetro Prima | J58: Trasm. Ante | K58: Superfice mq | L58: Telaio Dopo | M58: Vetro Dopo | O58: Trasm. Post | P58: Chius. Oscura
B59: Infissi in Legno 1 Anta Vetro Singolo con 1A2V | G59: Legno | H59: Singolo | J59: 3.5 | K59: 5 | L59: Legno | M59: Singolo | O59: 1.3 | P59: x | AC59: =IF(P59<>"",1,0) -> 1
B60: Portoni Ingresso | G60: Legno | H60: Nessuno | J60: 3.5 | K60: 4 | L60: Legno | M60: Nessuno | O60: 1.3 | AC60: =IF(P60<>"",1,0) -> 0
G61: - | H61: - | L61: - | M61: - | AC61: 0
G62: - | H62: - | L62: - | M62: - | AC62: 0
G63: - | H63: - | L63: - | M63: - | AC63: 0
G64: - | H64: - | L64: - | M64: - | AC64: 0
G65: - | H65: - | L65: - | M65: - | AC65: 0
AC66: =SUM(AC59:AC65) -> 1
B67: Superficie Totale disperdente oggetto di intervento [mq] | J67: =SUM(K59:K65) -> 9
B68: Spesa Massima Ammissibile | J68: =IF(AC66>0,'Computo-Massimali'!U21,'Computo-Massimali'!U20) -> 54545.45455
B69: Costo Complessivo Previsto in progetto | J69: =IF(AC66>0,'Computo-Massimali'!L21,'Computo-Massimali'!L20) -> 16309.37933
B70: Spesa Ammessa | J70: =IF(J69<J68,J69,J68) -> 16309.37933
B71: Costo Lavori Realizzati | J71: =IF(AC66>0,'SAL.30%'!L21,'SAL.30%'!L20) -> 0
B72: di cui ammessi | J72: =IF(J71<J70,J71,J70) -> 0
B73: Risparmio di energia primaria non rinnovabile di progetto [kWh/anno]
B76: Schermature solari e chiusure oscuranti
B77: Descrizione | G77: Tipo Schermatura | H77: Installazione | J77: Superf. Schermatura | K77: Superfice finestra protetta | L77: Resistenza term. suppl m2K/W | M77: Orientamento | N77: Tipo Calcolo | P77: gtot | Q77: Materiale schermatura | S77: Meccan. Regolaz.
B78: Persiane | G78: - | H78: - | J78: 3.5 | K78: 5 | L78: 0.08 | M78: - | N78: - | Q78: - | S78: -
B79: Sportelli Legno | G79: - | H79: - | J79: 3.5 | K79: 4 | M79: - | N79: - | Q79: - | S79: -
G80: - | H80: - | M80: - | N80: - | Q80: - | S80: -
G81: - | H81: - | M81: - | N81: - | Q81: - | S81: -
G82: - | H82: - | M82: - | N82: - | Q82: - | S82: -
G83: - | H83: - | M83: - | N83: - | Q83: - | S83: -
G84: - | H84: - | M84: - | N84: - | Q84: - | S84: -
B86: Spesa Massima Ammissibile | J86: ='Computo-Massimali'!U22 -> 54545.45455
B87: Costo Complessivo Previsto in progetto | J87: ='Computo-Massimali'!L22 -> 0
B88: Spesa Ammessa | J88: =IF(J87<J86,J87,J86) -> 0
B89: Costo Lavori Realizzati | J89: ='SAL.30%'!L22 -> 0
B90: di cui ammessi | J90: =IF(J89<J88,J89,J88) -> 0
B91: Risparmio di energia primaria non rinnovabile di progetto [kWh/anno]

Sheet SAL.60%
C3: STATO AVANZAMENTO LAVORI N.2 | F3: ='Dati Gen'!B27 -> Rossi Mario | N3: ='Dati Gen'!I2 -> ©2021 SIM srl - www.madosoft.it
C4: Data 27/03/2021 | F4: ='Dati Gen'!B28 -> Via Vitaliano, 23 | N4: ='Dati Gen'!I1 -> Pratica.110
E6: Imponibile | G6: %iva | H6: IVA | I6: Importo
C7: Importo complessivo Lavori | E7: ='Computo-Massimali'!F7 -> 134860.28 | G7: ='Computo-Massimali'!G7 -> 0.1 | H7: ='Computo-Massimali'!H7 -> 13486.028 | I7: ='Computo-Massimali'!I7 -> 148346.308
C8: di cui Oneri/Lavori x Sicurezza | E8: ='Computo-Massimali'!F8 -> 8032.08 | G8: ='Computo-Massimali'!G8 -> 0.1 | H8: ='Computo-Massimali'!H8 -> 803.208 | I8: ='Computo-Massimali'!I8 -> 8835.288
C9: Importo b.a. | E9: ='Computo-Massimali'!F9 -> 126828.2 | G9: ='Computo-Massimali'!G9 -> 0.1 | H9: ='Computo-Massimali'!H9 -> 12682.82 | I9: ='Computo-Massimali'!I9 -> 139511.02
C10: Spese tecniche (compresa iva) | E10: ='Computo-Massimali'!F10 -> 30243.15363 | G10: ='Computo-Massimali'!G10 -> 0 | H10: ='Computo-Massimali'!H10 -> 0 | I10: ='Computo-Massimali'!I10 -> 30243.15363
I11: ='Computo-Massimali'!I11 -> 178589.4616
C12: Lavori Eseguiti
C13: Oneri/Lavori x Sicurezza
C15: Lavorazione | E15: Importo Lavori Eseguiti | G15: Incidenza Sicurezza | H15: Imponibile | I15: Iva | J15: Importo c.iva | K15: Spese tecniche | L15: Totale | M15: % SAL | N15: Detrazione | Q15: ='Computo-Massimali'!U15 -> Massimale spesa | S15: Ripartizione Spese Tecniche | U15: Fatturare
C16: ='Computo-Massimali'!C16 -> Isolamento pareti perimetrali | G16: =$E$13*E16/$E$9 -> 0 | H16: =SUM(E16:G16) -> 0 | I16: =H16*'Computo-Massimali'!$G$9 -> 0 | J16: =SUM(H16:I16) -> 0 | K16: ='Computo-Massimali'!$AC$14*J16/$I$7 -> 0 | L16: =SUM(J16:K16) -> 0 | M16: =IF(L16>0,L16/'Computo-Massimali'!L16,"") ->  | N16: =IF(L16<=Q16,L16*1.1,Q16*1.1) -> 0 | Q16: ='Computo-Massimali'!U16 -> 50000 | S16: =IF('Computo-Massimali'!T3<>0,'Computo-Massimali'!T3,"-") -> Ape Ante | T16: =$K$39*'Computo-Massimali'!AC3/'Computo-Massimali'!$AC$14 -> 0 | U16: =IF(T16>0,T16-'SAL.30%'!T16,"0") -> 0
C17: ='Computo-Massimali'!C17 -> Isolamento coperture | G17: =$E$13*E17/$E$9 -> 0 | H17: =SUM(E17:G17) -> 0 | I17: =H17*'Computo-Massimali'!$G$9 -> 0 | J17: =SUM(H17:I17) -> 0 | K17: ='Computo-Massimali'!$AC$14*J17/$I$7 -> 0 | L17: =SUM(J17:K17) -> 0 | M17: =IF(L17>0,L17/'Computo-Massimali'!L17,"") ->  | N17: 0 | Q17: ='Computo-Massimali'!U17 -> 50000 | S17: =IF('Computo-Massimali'!T4<>0,'Computo-Massimali'!T4,"-") -> Progettazione e DL | T17: =$K$39*'Computo-Massimali'!AC4/'Computo-Massimali'!$AC$14 -> 0 | U17: =IF(T17>0,T17-'SAL.30%'!T17,"0") -> 0
C18: ='Computo-Massimali'!C18 -> Isolamento Pavimenti | G18: =$E$13*E18/$E$9 -> 0 | H18: 0 | I18: =H18*'Computo-Massimali'!$G$9 -> 0 | J18: 0 | K18: ='Computo-Massimali'!$AC$14*J18/$I$7 -> 0 | L18: 0 | M18: =IF(L18>0,L18/'Computo-Massimali'!L18,"") ->  | N18: 0 | Q18: ='Computo-Massimali'!U18 -> 50000 | S18: =IF('Computo-Massimali'!T5<>0,'Computo-Massimali'!T5,"-") -> Coord.SicurezzaEsec. | T18: =$K$39*'Computo-Massimali'!AC5/'Computo-Massimali'!$AC$14 -> 0 | U18: =IF(T18>0,T18-'SAL.30%'!T18,"0") -> 0
C19: ='Computo-Massimali'!C19 -> Isolamento sup. verticali e/o orizzontali | E19: =SUM(E16:F18) -> 0 | G19: =SUM(G16:G18) -> 0 | H19: =SUM(H16:H18) -> 0 | I19: =SUM(I16:I18) -> 0 | J19: =SUM(J16:J18) -> 0 | K19: =SUM(K16:K18) -> 0 | L19: =IF('Dati Gen'!P17="Versione DEMO","Versione DEMO",SUM(J19:K19)) -> Versione DEMO | M19: =IF(L19>0,L19/'Computo-Massimali'!L19,"") ->  | N19: 55000 | Q19: ='Computo-Massimali'!U19 -> 50000 | S19: =IF('Computo-Massimali'!T6<>0,'Computo-Massimali'!T6,"-") -> Ape Post | T19: =$K$39*'Computo-Massimali'!AC6/'Computo-Massimali'!$AC$14 -> 0 | U19: =IF(T19>0,T19-'SAL.30%'!T19,"0") -> 0
C20: ='Computo-Massimali'!C20 -> Serramenti | G20: =$E$13*E20/$E$9 -> 0 | H20: 0 | I20: =H20*'Computo-Massimali'!$G$9 -> 0 | J20: 0 | K20: ='Computo-Massimali'!$AC$14*J20/$I$7 -> 0 | L20: 0 | M20: =IF(L20>0,L20/'Computo-Massimali'!L20,"") ->  | N20: 0 | Q20: ='Computo-Massimali'!U20 -> 54545.45455 | S20: =IF('Computo-Massimali'!T7<>0,'Computo-Massimali'!T7,"-") -> - | T20: =$K$39*'Computo-Massimali'!AC7/'Computo-Massimali'!$AC$14 -> 0 | U20: =IF(T20>0,T20-'SAL.30%'!T20,"0") -> 0
C21: ='Computo-Massimali'!C21 -> Serramenti + chiusure oscuranti | G21: 0 | H21: 0 | I21: =H21*'Computo-Massimali'!$G$9 -> 0 | J21: 0 | K21: ='Computo-Massimali'!$AC$14*J21/$I$7 -> 0 | L21: 0 | M21: =IF(L21>0,L21/'Computo-Massimali'!L21,"") ->  | N21: 0 | Q21: ='Computo-Massimali'!U21 -> 54545.45455 | S21: =IF('Computo-Massimali'!T8<>0,'Computo-Massimali'!T8,"-") -> - | T21: =$K$39*'Computo-Massimali'!AC8/'Computo-Massimali'!$AC$14 -> 0 | U21: =IF(T21>0,T21-'SAL.30%'!T21,"0") -> 0
C22: ='Computo-Massimali'!C22 -> Schermature solari e chiusure Oscuranti | G22: 0 | H22: 0 | I22: =H22*'Computo-Massimali'!$G$9 -> 0 | J22: 0 | K22: ='Computo-Massimali'!$AC$14*J22/$I$7 -> 0 | L22: 0 | M22: =IF(L22>0,L22/'Computo-Massimali'!L22,"") ->  | N22: 0 | Q22: ='Computo-Massimali'!U22 -> 54545.45455 | S22: =IF('Computo-Massimali'!T9<>0,'Computo-Massimali'!T9,"-") -> - | T22: =$K$39*'Computo-Massimali'!AC9/'Computo-Massimali'!$AC$14 -> 0 | U22: =IF(T22>0,T22-'SAL.30%'!T22,"0") -> 0
C23: ='Computo-Massimali'!C23 -> Solare Termico - con collettori solari | G23: 0 | H23: 0 | I23: =H23*'Computo-Massimali'!$G$9 -> 0 | J23: 0 | K23: ='Computo-Massimali'!$AC$14*J23/$I$7 -> 0 | L23: 0 | M23: =IF(L23>0,L23/'Computo-Massimali'!L23,"") ->  | N23: 0 | Q23: ='Computo-Massimali'!U23 -> 30000 | S23: =IF('Computo-Massimali'!T10<>0,'Computo-Massimali'!T10,"-") -> - | T23: =$K$39*'Computo-Massimali'!AC10/'Computo-Massimali'!$AC$14 -> 0 | U23: =IF(T23>0,T23-'SAL.30%'!T23,"0") -> 0
C24: ='Computo-Massimali'!C24 -> Solare Fotovoltaico kWp | D24: ='Computo-Massimali'!D24 -> 6 | G24: 0 | H24: 0 | I24: =H24*'Computo-Massimali'!$G$9 -> 0 | J24: 0 | K24: ='Computo-Massimali'!$AC$14*J24/$I$7 -> 0 | L24: 0 | M24: =IF(L24>0,L24/'Computo-Massimali'!L24,"") ->  | N24: 0 | Q24: ='Computo-Massimali'!U24 -> 14400 | S24: =IF('Computo-Massimali'!T13<>0,'Computo-Massimali'!T13,"-") -> Visto Conformità | T24: =$K$39*'Computo-Massimali'!AC13/'Computo-Massimali'!$AC$14 -> 0 | U24: =IF(T24>0,T24-'SAL.30%'!T24,"0") -> 0
C25: ='Computo-Massimali'!C25 -> Sistema di Accumulo kWh | D25: ='Computo-Massimali'!D25 -> 10 | G25: 0 | H25: 0 | I25: =H25*'Computo-Massimali'!$G$9 -> 0 | J25: 0 | K25: ='Computo-Massimali'!$AC$14*J25/$I$7 -> 0 | L25: 0 | M25: =IF(L25>0,L25/'Computo-Massimali'!L25,"") ->  | N25: 0 | Q25: ='Computo-Massimali'!U25 -> 10000 | T25: =SUM(T16:T24) -> 0 | U25: =SUM(U16:U24) -> 0
C26: ='Computo-Massimali'!C26 -> Impianti climatizzazione e ACS | G26: 0 | H26: 0 | I26: =H26*'Computo-Massimali'!$G$9 -> 0 | J26: 0 | K26: ='Computo-Massimali'!$AC$14*J26/$I$7 -> 0 | L26: =IF('Dati Gen'!P17="Versione DEMO","Versione DEMO",SUM(J26:K26)) -> Versione DEMO | M26: =IF(L26>0,L26/'Computo-Massimali'!L26,"") ->  | N26: 33000 | Q26: ='Computo-Massimali'!U26 -> 30000
C27: ='Computo-Massimali'!C27 -> Impianti Biomassa | G27: 0 | H27: 0 | I27: =H27*'Computo-Massimali'!$G$9 -> 0 | J27: 0 | K27: ='Computo-Massimali'!$AC$14*J27/$I$7 -> 0 | L27: 0 | M27: =IF(L27>0,L27/'Computo-Massimali'!L27,"") ->  | N27: 0 | Q27: ='Computo-Massimali'!U27 -> 30000
C28: ='Computo-Massimali'!C28 -> Sistemi di Building Automation | G28: 0 | H28: 0 | I28: =H28*'Computo-Massimali'!$G$9 -> 0 | J28: 0 | K28: ='Computo-Massimali'!$AC$14*J28/$I$7 -> 0 | L28: 0 | M28: =IF(L28>0,L28/'Computo-Massimali'!L28,"") ->  | N28: 0 | Q28: ='Computo-Massimali'!U28 -> 15000
C29: ='Computo-Massimali'!C29 -> Colonnine di Ricarica | G29: 0 | H29: 0 | I29: =H29*'Computo-Massimali'!$G$9 -> 0 | J29: 0 | K29: ='Computo-Massimali'!$AC$14*J29/$I$7 -> 0 | L29: 0 | M29: =IF(L29>0,L29/'Computo-Massimali'!L29,"") ->  | N29: 0 | Q29: ='Computo-Massimali'!U29 -> 2000
C30: ='Computo-Massimali'!C30 -> SismaBonus | G30: 0 | H30: 0 | I30: =H30*'Computo-Massimali'!$G$9 -> 0 | J30: 0 | K30: ='Computo-Massimali'!$AC$11*J30/$I$7 -> 0 | L30: 0 | M30: =IF(L30>0,L30/'Computo-Massimali'!L30,"") ->  | N30: 0 | Q30: ='Computo-Massimali'!U30 -> 96000
E31: =SUM(E19:F30) -> 0 | G31: =SUM(G19:G30) -> 0 | H31: 0 | I31: 0 | J31: 0 | K31: 0 | L31: 0 | N31: =SUM(N19:N30) -> 88000
C33: ='Computo-Massimali'!C33 -> Lavori Ristrutturazione | D33: ='Computo-Massimali'!E33 -> 0.5 | G33: =$E$13*E33/$E$9 -> 0 | H33: =SUM(E33:G33) -> 0 | I33: =H33*'Computo-Massimali'!$G$9 -> 0 | J33: =SUM(H33:I33) -> 0 | K33: ='Computo-Massimali'!$AC$14*J33/$I$7 -> 0 | L33: =SUM(J33:K33) -> 0 | M33: =IF(L33>0,L33/'Computo-Massimali'!L33,"") ->  | N33: =IF(L33<=Q33*D33,L33*D33,U33*D33) -> 0 | Q33: ='Computo-Massimali'!U33 -> 96000
C34: ='Computo-Massimali'!C34 -> - | D34: ='Computo-Massimali'!E34 -> 0 | G34: 0 | H34: 0 | I34: =H34*'Computo-Massimali'!$G$9 -> 0 | J34: 0 | K34: ='Computo-Massimali'!$AC$14*J34/$I$7 -> 0 | L34: 0 | M34: =IF(L34>0,L34/'Computo-Massimali'!L34,"") ->  | N34: =IF(L34<=Q34*D34,L34*D34,U34*D34) -> 0 | Q34: ='Computo-Massimali'!U34 -> 96000
E35: =SUM(E33:F34) -> 0 | G35: =SUM(G33:G34) -> 0 | H35: =SUM(H33:H34) -> 0 | I35: =SUM(I33:I34) -> 0 | J35: =SUM(J33:J34) -> 0 | K35: 0 | L35: 0 | N35: =SUM(N33:N34) -> 0
E38: =E15 -> Importo Lavori Eseguiti | G38: Incidenza Sicurezza | H38: Imponibile | I38: =I15 -> Iva | J38: Importo c.iva | K38: Spese tecniche | L38: Totale | M38: % SAL | N38: Detrazione
C39: Totali SAL N.2 | E39: =E31+E35 -> 0 | G39: =G31+G35 -> 0 | H39: =H31+H35 -> 0 | I39: =I35+I31 -> 0 | J39: =J35+J31 -> 0 | K39: =K35+K31 -> 0 | L39: =SUM(J39:K39) -> 0 | M39: =E39/E9 -> 0 | N39: =N35+N31 -> 88000 | P39: =IF(M39>=60%,"V.","") -> 
K41: =IF(M39>=60%,"","SAL inferiore 60%") -> SAL inferiore 60%

Sheet Enea SAL 60%
B2: Tipologia Edificio | C2: ='Dati Gen'!B4 -> Edificio Unifamiliare | M2: https://detrazionifiscali.enea.it/creaasseverazione.asp
B3: Data Inizio Lavori | C3: ='Dati Gen'!C30 -> 2021-03-15
B5: Comune Ubicazione | C5: ='Dati Gen'!C7 -> ROMA
B6: Comune Montano | C6: X | D6: SI | F6: NO | G6: Elenco Comuni Montani
B7: Interessato Infrazione | D7: SI | E7: X | F7: NO | G7: Elenco Comuni Infrazioni
B8: Intervento comma 4-Ter | D8: SI | E8: X | F8: NO | G8: 160% Zone Terremotate
B10: Indirizzo | C10: ='Dati Gen'!C8 -> Via Vitaliano | I10: N.Civico | J10: ='Dati Gen'!K8 -> 23 | K10: CAP | L10: ='Dati Gen'!K7 -> 0
B11: Anno di Costruzione Immobile | C11: ='Dati Gen'!C10 -> 0 | G11: ='Dati Gen'!F10 -> Superficie Totale Disperdente : | L11: ='Dati Gen'!K10 -> 0
B12: Edificio in area Metanizzata | C12: X | D12: SI | F12: NO
B13: Autorizzazione Edilizia | C13: ='Dati Gen'!C11 -> Edificio Storico senza Titolo Edilizio | I13: ='Dati Gen'!H11 ->  | J13: =IF('Dati Gen'!I11<>"",'Dati Gen'!I11,"") ->  | K13: ='Dati Gen'!J11 ->  | L13: =IF('Dati Gen'!I13<>"",'Dati Gen'!I13,"") -> 
B15: ='Dati Gen'!B32 -> Relazione ex Legge 10/91 Depositata al Comune in Data | H15: =IF('Dati Gen'!G32<>"",'Dati Gen'!G32,"") -> 44270 | J15: Prot. N. | L15: =IF('Dati Gen'!K32<>"",'Dati Gen'!K32,"") -> 25658
B18: intervento di isolamento termico delle superfici opache verticali, orizzontali e inclinate
B19: Descrizione | G19: Superficie mq | H19: Trasm. Ante | I19: Trasm. Post | J19: Trasm.P. YIE | K19: Confine | L19: Coiben-tazione | M19: Realizzati mq
B20: Pareti Verticali Mattoni Pieni 30cm | G20: 50 | H20: 3 | I20: 1.26 | J20: 0.03 | K20: Esterno | L20: Esterna | M20: 30
B21: Pareti Verticali Pietrame 50cm | G21: 20 | K21: - | L21: -
B22: Coperture Legno | K22: - | L22: -
B23: Coperture Acciaio | K23: - | L23: -
B24: Pavimenti | K24: - | L24: -
K25: - | L25: -
K26: - | L26: -
K27: - | L27: -
K28: - | L28: -
B30: Superficie Totale disperdente oggetto di intervento [mq] | J30: =SUM(G20:G28) -> 70
B31: Spesa Massima Ammissibile | J31: ='SAL.60%'!Q19 -> 50000
B32: Costo Complessivo Previsto in progetto | J32: ='Computo-Massimali'!L19 -> 48998.64257
B33: Spesa Ammessa | J33: =IF(J32<J31,J32,J31) -> 48998.64257
B34: Costo Lavori Realizzati | J34: ='SAL.60%'!L19 -> Versione DEMO
B35: di cui ammessi | J35: =IF(J34<J33,J34,J33) -> 48998.64257
B36: Risparmio di energia primaria non rinnovabile di progetto [kWh/anno]
B40: Intervento di sostituzione degli impianti di climatizzazione invernale esistenti
B41: Descrizione | G41: Tipo Sostituito | H41: P.Nom Sostituito | I41: P.Nom Nuova | J41: Rendim Nomin. | K41: Destinata | L41: Efficienza Riscaldam. hs | M41: Efficienza ACS hw | N41: Tipo Aliment. | O41: Classe Dispositivo Termoreg. Evoluto | P41: Tipo PDC | Q41: Pot. Elettr. Assorb | R41: COP | S41: Superfic. Risc. Da PDC | AD41: Tipo Sostituito
B42: Caldaia a Condensazione | G42: - | H42: 24 | I42: 26 | J42: 0.03 | K42: - | L42: 0 | N42: - | O42: - | P42: Salamoia/Acqua | AD42: -
B43: Pompe calore PDC compr. vapore el. sonde geot. | G43: - | K43: - | N43: - | O43: - | P43: - | AD43: Caldaia Standard
B44: Coperture Legno | G44: - | K44: - | N44: - | O44: - | P44: - | AD44: Caldaia Bassa Temp.
B45: Coperture Acciaio | G45: - | K45: - | N45: - | O45: - | P45: - | AD45: Caldaia Condens. Gas
B46: Pavimenti | G46: - | K46: - | N46: - | O46: - | P46: - | AD46: Caldaia Condens.Gasolio
G47: - | K47: - | N47: - | O47: - | P47: - | AD47: Teleriscaldamento
G48: - | K48: - | N48: - | O48: - | P48: - | AD48: Impianto biomassa
AD49: Altro
B50: Destinati a : Climatizzazione Invernale | G50: X | J50: Spesa Massima Ammissibile | Q50: ='Computo-Massimali'!U26 -> 30000
B51: Climatizzazione estiva | J51: Costo Complessivo Previsto in progetto | Q51: ='Computo-Massimali'!L26 -> 30039.24979
B52: prod. di acqua calda sanitaria | J52: Spesa Ammessa | Q52: =IF(Q51<Q50,Q51,Q50) -> 30000
J53: Costo Lavori Realizzati | Q53: ='SAL.60%'!L26 -> Versione DEMO
J54: di cui ammessi | Q54: =IF(Q53<Q52,Q53,Q52) -> 30000
J55: Risparmio di energia primaria non rinnovabile di progetto [kWh/anno]
B57: Sostituzione degli infissi
B58: Descrizione | G58: Telaio Prima | H58: Vetro Prima | J58: Trasm. Ante | K58: Superfice mq | L58: Telaio Dopo | M58: Vetro Dopo | O58: Trasm. Post | P58: Chius. Oscura
B59: Infissi in Legno 1 Anta Vetro Singolo con 1A2V | G59: Legno | H59: Singolo | J59: 3.5 | K59: 5 | L59: Legno | M59: Singolo | O59: 1.3 | P59: x | AC59: =IF(P59<>"",1,0) -> 1
B60: Portoni Ingresso | G60: Legno | H60: Nessuno | J60: 3.5 | K60: 4 | L60: Legno | M60: Nessuno | O60: 1.3 | AC60: =IF(P60<>"",1,0) -> 0
G61: - | H61: - | L61: - | M61: - | AC61: 0
G62: - | H62: - | L62: - | M62: - | AC62: 0
G63: - | H63: - | L63: - | M63: - | AC63: 0
G64: - | H64: - | L64: - | M64: - | AC64: 0
G65: - | H65: - | L65: - | M65: - | AC65: 0
AC66: =SUM(AC59:AC65) -> 1
B67: Superficie Totale disperdente oggetto di intervento [mq] | J67: =SUM(K59:K65) -> 9
B68: Spesa Massima Ammissibile | J68: =IF(AC66>0,'Computo-Massimali'!U21,'Computo-Massimali'!U20) -> 54545.45455
B69: Costo Complessivo Previsto in progetto | J69: =IF(AC66>0,'Computo-Massimali'!L21,'Computo-Massimali'!L20) -> 16309.37933
B70: Spesa Ammessa | J70: =IF(J69<J68,J69,J68) -> 16309.37933
B71: Costo Lavori Realizzati | J71: =IF(AC66>0,'SAL.60%'!L21,'SAL.60%'!L20) -> 0
B72: di cui ammessi | J72: =IF(J71<J70,J71,J70) -> 0
B73: Risparmio di energia primaria non rinnovabile di progetto [kWh/anno]
B76: Schermature solari e chiusure oscuranti
B77: Descrizione | G77: Tipo Schermatura | H77: Installazione | J77: Superf. Schermatura | K77: Superfice finestra protetta | L77: Resistenza term. suppl m2K/W | M77: Orientamento | N77: Tipo Calcolo | P77: gtot | Q77: Materiale schermatura | S77: Meccan. Regolaz.
B78: Persiane | G78: - | H78: - | J78: 3.5 | K78: 5 | L78: 0.08 | M78: - | N78: - | Q78: - | S78: -
B79: Sportelli Legno | G79: - | H79: - | J79: 3.5 | K79: 4 | M79: - | N79: - | Q79: - | S79: -
G80: - | H80: - | M80: - | N80: - | Q80: - | S80: -
G81: - | H81: - | M81: - | N81: - | Q81: - | S81: -
G82: - | H82: - | M82: - | N82: - | Q82: - | S82: -
G83: - | H83: - | M83: - | N83: - | Q83: - | S83: -
G84: - | H84: - | M84: - | N84: - | Q84: - | S84: -
B86: Spesa Massima Ammissibile | J86: ='Computo-Massimali'!U22 -> 54545.45455
B87: Costo Complessivo Previsto in progetto | J87: ='Computo-Massimali'!L22 -> 0
B88: Spesa Ammessa | J88: =IF(J87<J86,J87,J86) -> 0
B89: Costo Lavori Realizzati | J89: ='SAL.60%'!L22 -> 0
B90: di cui ammessi | J90: =IF(J89<J88,J89,J88) -> 0
B91: Risparmio di energia primaria non rinnovabile di progetto [kWh/anno]

Sheet SAL.Finale
C3: STATO AVANZAMENTO LAVORI Finale | F3: ='Dati Gen'!B27 -> Rossi Mario | N3: ='Dati Gen'!I2 -> ©2021 SIM srl - www.madosoft.it
C4: Data 27/03/2021 | F4: ='Dati Gen'!B28 -> Via Vitaliano, 23 | N4: ='Dati Gen'!I1 -> Pratica.110
E6: Imponibile | G6: %iva | H6: IVA | I6: Importo
C7: Importo complessivo Lavori | E7: ='Computo-Massimali'!F7 -> 134860.28 | G7: ='Computo-Massimali'!G7 -> 0.1 | H7: ='Computo-Massimali'!H7 -> 13486.028 | I7: ='Computo-Massimali'!I7 -> 148346.308
C8: di cui Oneri/Lavori x Sicurezza | E8: ='Computo-Massimali'!F8 -> 8032.08 | G8: ='Computo-Massimali'!G8 -> 0.1 | H8: ='Computo-Massimali'!H8 -> 803.208 | I8: ='Computo-Massimali'!I8 -> 8835.288
C9: Importo b.a. | E9: ='Computo-Massimali'!F9 -> 126828.2 | G9: ='Computo-Massimali'!G9 -> 0.1 | H9: ='Computo-Massimali'!H9 -> 12682.82 | I9: ='Computo-Massimali'!I9 -> 139511.02
C10: Spese tecniche (compresa iva) | E10: ='Computo-Massimali'!F10 -> 30243.15363 | G10: ='Computo-Massimali'!G10 -> 0 | H10: ='Computo-Massimali'!H10 -> 0 | I10: ='Computo-Massimali'!I10 -> 30243.15363
I11: ='Computo-Massimali'!I11 -> 178589.4616
C12: Lavori Eseguiti
C13: Oneri/Lavori x Sicurezza | E13: 8032.08
C15: Lavorazione | E15: Importo Lavori Eseguiti | G15: Incidenza Sicurezza | H15: Imponibile | I15: Iva | J15: Importo c.iva | K15: Spese tecniche | L15: Totale | M15: % SAL | N15: Detrazione | Q15: ='Computo-Massimali'!U15 -> Massimale spesa | S15: Ripartizione Spese Tecniche | U15: Fatturare
C16: ='Computo-Massimali'!C16 -> Isolamento pareti perimetrali | E16: 20381.52 | G16: =$E$13*E16/$E$9 -> 1290.769712 | H16: =SUM(E16:G16) -> 21672.28971 | I16: =H16*'Computo-Massimali'!$G$9 -> 2167.228971 | J16: =SUM(H16:I16) -> 23839.51868 | K16: ='Computo-Massimali'!$AC$14*J16/$I$7 -> 4860.129219 | L16: =SUM(J16:K16) -> 28699.6479 | M16: =IF(L16>0,L16/'Computo-Massimali'!L16,"") -> 1 | N16: =IF(L16<=Q16,L16*1.1,Q16*1.1) -> 31569.61269 | Q16: ='Computo-Massimali'!U16 -> 50000 | S16: =IF('Computo-Massimali'!T3<>0,'Computo-Massimali'!T3,"-") -> Ape Ante | T16: =$K$41*'Computo-Massimali'!AC3/'Computo-Massimali'!$AC$14 -> 832.988 | U16: =IF(T16>0,T16-'SAL.30%'!T16-'SAL.60%'!U16,"") -> 792.8396183
C17: ='Computo-Massimali'!C17 -> Isolamento coperture | E17: 14415.66 | G17: =$E$13*E17/$E$9 -> 912.9494416 | H17: =SUM(E17:G17) -> 15328.60944 | I17: =H17*'Computo-Massimali'!$G$9 -> 1532.860944 | J17: =SUM(H17:I17) -> 16861.47039 | K17: ='Computo-Massimali'!$AC$14*J17/$I$7 -> 3437.524305 | L17: =SUM(J17:K17) -> 20298.99469 | M17: =IF(L17>0,L17/'Computo-Massimali'!L17,"") -> 1.000000001 | N17: 22328.89416 | Q17: ='Computo-Massimali'!U17 -> 50000 | S17: =IF('Computo-Massimali'!T4<>0,'Computo-Massimali'!T4,"-") -> Progettazione e DL | T17: =$K$41*'Computo-Massimali'!AC4/'Computo-Massimali'!$AC$14 -> 21554.2704 | U17: =IF(T17>0,T17-'SAL.30%'!T17-'SAL.60%'!U17,"") -> 20515.397
C18: ='Computo-Massimali'!C18 -> Isolamento Pavimenti | G18: =$E$13*E18/$E$9 -> 0 | H18: 0 | I18: =H18*'Computo-Massimali'!$G$9 -> 0 | J18: 0 | K18: ='Computo-Massimali'!$AC$14*J18/$I$7 -> 0 | L18: 0 | M18: =IF(L18>0,L18/'Computo-Massimali'!L18,"") ->  | N18: 0 | Q18: ='Computo-Massimali'!U18 -> 50000 | S18: =IF('Computo-Massimali'!T5<>0,'Computo-Massimali'!T5,"-") -> Coord.SicurezzaEsec. | T18: =$K$41*'Computo-Massimali'!AC5/'Computo-Massimali'!$AC$14 -> 5075.2 | U18: =IF(T18>0,T18-'SAL.30%'!T18-'SAL.60%'!U18,"") -> 4830.585351
C19: ='Computo-Massimali'!C19 -> Isolamento sup. verticali e/o orizzontali | E19: =SUM(E16:F18) -> 34797.18 | G19: =SUM(G16:G18) -> 2203.719153 | H19: =SUM(H16:H18) -> 37000.89915 | I19: =SUM(I16:I18) -> 3700.089915 | J19: =SUM(J16:J18) -> 40700.98907 | K19: =SUM(K16:K18) -> 8297.653524 | L19: =IF('Dati Gen'!P17="Versione DEMO","Versione DEMO",SUM(J19:K19)) -> Versione DEMO | M19: =IF(L19>0,L19/'Computo-Massimali'!L19,"") ->  | N19: 55000 | Q19: ='Computo-Massimali'!U19 -> 50000 | S19: =IF('Computo-Massimali'!T6<>0,'Computo-Massimali'!T6,"-") -> Ape Post | T19: =$K$41*'Computo-Massimali'!AC6/'Computo-Massimali'!$AC$14 -> 1069.588 | U19: =IF(T19>0,T19-'SAL.30%'!T19-'SAL.60%'!U19,"") -> 1018.035964
C20: ='Computo-Massimali'!C20 -> Serramenti | G20: =$E$13*E20/$E$9 -> 0 | H20: 0 | I20: =H20*'Computo-Massimali'!$G$9 -> 0 | J20: 0 | K20: ='Computo-Massimali'!$AC$14*J20/$I$7 -> 0 | L20: 0 | M20: =IF(L20>0,L20/'Computo-Massimali'!L20,"") ->  | N20: 0 | Q20: ='Computo-Massimali'!U20 -> 54545.45455 | S20: =IF('Computo-Massimali'!T7<>0,'Computo-Massimali'!T7,"-") -> - | T20: =$K$41*'Computo-Massimali'!AC7/'Computo-Massimali'!$AC$14 -> 0 | U20: =IF(T20>0,T20-'SAL.30%'!T20-'SAL.60%'!U20,"") -> 
C21: ='Computo-Massimali'!C21 -> Serramenti + chiusure oscuranti | E21: 11582.37 | G21: 733.5160668 | H21: 12315.88607 | I21: =H21*'Computo-Massimali'!$G$9 -> 1231.588607 | J21: 13547.47467 | K21: ='Computo-Massimali'!$AC$14*J21/$I$7 -> 2761.90465 | L21: 16309.37932 | M21: =IF(L21>0,L21/'Computo-Massimali'!L21,"") -> 0.9999999997 | N21: 17940.31726 | Q21: ='Computo-Massimali'!U21 -> 54545.45455 | S21: =IF('Computo-Massimali'!T8<>0,'Computo-Massimali'!T8,"-") -> - | T21: =$K$41*'Computo-Massimali'!AC8/'Computo-Massimali'!$AC$14 -> 0 | U21: =IF(T21>0,T21-'SAL.30%'!T21-'SAL.60%'!U21,"") -> 
C22: ='Computo-Massimali'!C22 -> Schermature solari e chiusure Oscuranti | G22: 0 | H22: 0 | I22: =H22*'Computo-Massimali'!$G$9 -> 0 | J22: 0 | K22: ='Computo-Massimali'!$AC$14*J22/$I$7 -> 0 | L22: 0 | M22: =IF(L22>0,L22/'Computo-Massimali'!L22,"") ->  | N22: 0 | Q22: ='Computo-Massimali'!U22 -> 54545.45455 | S22: =IF('Computo-Massimali'!T9<>0,'Computo-Massimali'!T9,"-") -> - | T22: =$K$41*'Computo-Massimali'!AC9/'Computo-Massimali'!$AC$14 -> 0 | U22: =IF(T22>0,T22-'SAL.30%'!T22-'SAL.60%'!U22,"") -> 
C23: ='Computo-Massimali'!C23 -> Solare Termico - con collettori solari | E23: 4925.08 | G23: 311.9072617 | H23: 5236.987262 | I23: =H23*'Computo-Massimali'!$G$9 -> 523.6987262 | J23: 5760.685988 | K23: ='Computo-Massimali'!$AC$14*J23/$I$7 -> 1174.422968 | L23: 6935.108956 | M23: =IF(L23>0,L23/'Computo-Massimali'!L23,"") -> 0.9999999989 | N23: 7628.619852 | Q23: ='Computo-Massimali'!U23 -> 30000 | S23: =IF('Computo-Massimali'!T10<>0,'Computo-Massimali'!T10,"-") -> - | T23: =$K$41*'Computo-Massimali'!AC10/'Computo-Massimali'!$AC$14 -> 0 | U23: =IF(T23>0,T23-'SAL.30%'!T23-'SAL.60%'!U23,"") -> 
C24: ='Computo-Massimali'!C24 -> Solare Fotovoltaico kWp | D24: ='Computo-Massimali'!D24 -> 6 | E24: 13474.07 | G24: 853.318175 | H24: 14327.38818 | I24: =H24*'Computo-Massimali'!$G$9 -> 1432.738818 | J24: 15760.12699 | K24: ='Computo-Massimali'!$AC$14*J24/$I$7 -> 3212.994973 | L24: 18973.12197 | M24: =IF(L24>0,L24/'Computo-Massimali'!L24,"") -> 0.9999999999 | N24: 15840 | Q24: ='Computo-Massimali'!U24 -> 14400 | S24: =IF('Computo-Massimali'!T13<>0,'Computo-Massimali'!T13,"-") -> Visto Conformità | T24: =$K$41*'Computo-Massimali'!AC13/'Computo-Massimali'!$AC$14 -> 1711.107233 | U24: =IF(T24>0,T24-'SAL.30%'!T24-'SAL.60%'!U24,"") -> 1628.635233
C25: ='Computo-Massimali'!C25 -> Sistema di Accumulo kWh | D25: ='Computo-Massimali'!D25 -> 10 | E25: 6455.26 | G25: 408.8141655 | H25: 6864.074165 | I25: =H25*'Computo-Massimali'!$G$9 -> 686.4074165 | J25: 7550.481582 | K25: ='Computo-Massimali'!$AC$14*J25/$I$7 -> 1539.306084 | L25: 9089.787666 | M25: =IF(L25>0,L25/'Computo-Massimali'!L25,"") -> 0.9999999993 | N25: 9998.766433 | Q25: ='Computo-Massimali'!U25 -> 10000 | T25: =SUM(T16:T24) -> 30243.15363 | U25: =SUM(U16:U24) -> 28785.49317
C26: ='Computo-Massimali'!C26 -> Impianti climatizzazione e ACS | E26: 21332.86 | G26: 1351.01845 | H26: 22683.87845 | I26: =H26*'Computo-Massimali'!$G$9 -> 2268.387845 | J26: 24952.26629 | K26: ='Computo-Massimali'!$AC$14*J26/$I$7 -> 5086.983513 | L26: =IF('Dati Gen'!P17="Versione DEMO","Versione DEMO",SUM(J26:K26)) -> Versione DEMO | M26: =IF(L26>0,L26/'Computo-Massimali'!L26,"") ->  | N26: 33000 | Q26: ='Computo-Massimali'!U26 -> 30000
C27: ='Computo-Massimali'!C27 -> Impianti Biomassa | E27: 0 | G27: 0 | H27: 0 | I27: =H27*'Computo-Massimali'!$G$9 -> 0 | J27: 0 | K27: ='Computo-Massimali'!$AC$14*J27/$I$7 -> 0 | L27: 0 | M27: =IF(L27>0,L27/'Computo-Massimali'!L27,"") ->  | N27: 0 | Q27: ='Computo-Massimali'!U27 -> 30000
C28: ='Computo-Massimali'!C28 -> Sistemi di Building Automation | E28: 5541.15 | G28: 350.9232181 | H28: 5892.073218 | I28: =H28*'Computo-Massimali'!$G$9 -> 589.2073218 | J28: 6481.28054 | K28: ='Computo-Massimali'!$AC$14*J28/$I$7 -> 1321.329568 | L28: 7802.610108 | M28: =IF(L28>0,L28/'Computo-Massimali'!L28,"") -> 1.000000001 | N28: 8582.871119 | Q28: ='Computo-Massimali'!U28 -> 15000
C29: ='Computo-Massimali'!C29 -> Colonnine di Ricarica | G29: 0 | H29: 0 | I29: =H29*'Computo-Massimali'!$G$9 -> 0 | J29: 0 | K29: ='Computo-Massimali'!$AC$14*J29/$I$7 -> 0 | L29: 0 | M29: =IF(L29>0,L29/'Computo-Massimali'!L29,"") ->  | N29: 0 | Q29: ='Computo-Massimali'!U29 -> 2000
C30: ='Computo-Massimali'!C30 -> SismaBonus | G30: 0 | H30: 0 | I30: =H30*'Computo-Massimali'!$G$9 -> 0 | J30: 0 | K30: ='Computo-Massimali'!$AC$14*J30/$I$7 -> 0 | L30: 0 | M30: =IF(L30>0,L30/'Computo-Massimali'!L30,"") ->  | N30: 0 | Q30: ='Computo-Massimali'!U30 -> 96000
E31: =SUM(E19:F30) -> 98107.97 | G31: =SUM(G19:G30) -> 6213.21649 | H31: 104321.1865 | I31: 10432.11865 | J31: 114753.3051 | K31: 23394.59528 | L31: 59110.00802 | N31: =SUM(N19:N30) -> 147990.5747
C33: ='Computo-Massimali'!C33 -> Lavori Ristrutturazione | D33: ='Computo-Massimali'!E33 -> 0.5 | E33: 28720.23 | G33: =$E$13*E33/$E$9 -> 1818.86351 | H33: =SUM(E33:G33) -> 30539.09351 | I33: =H33*'Computo-Massimali'!$G$9 -> 3053.909351 | J33: =SUM(H33:I33) -> 33593.00286 | K33: ='Computo-Massimali'!$AC$14*J33/$I$7 -> 6848.558351 | L33: =SUM(J33:K33) -> 40441.56121 | M33: =IF(L33>0,L33/'Computo-Massimali'!L33,"") -> 1 | N33: =IF(L33<=Q33*D33,L33*D33,U33*D33) -> 20220.78061 | Q33: ='Computo-Massimali'!U33 -> 96000
C34: ='Computo-Massimali'!C34 -> - | D34: ='Computo-Massimali'!E34 -> 0 | G34: 0 | H34: 0 | I34: =H34*'Computo-Massimali'!$G$9 -> 0 | J34: 0 | K34: ='Computo-Massimali'!$AC$14*J34/$I$7 -> 0 | L34: 0 | M34: =IF(L34>0,L34/'Computo-Massimali'!L34,"") ->  | N34: =IF(L34<=Q34*D34,L34*D34,U34*D34) -> 0 | Q34: ='Computo-Massimali'!U34 -> 96000
E35: =SUM(E33:F34) -> 28720.23 | G35: =SUM(G33:G34) -> 1818.86351 | H35: =SUM(H33:H34) -> 30539.09351 | I35: =SUM(I33:I34) -> 3053.909351 | J35: =SUM(J33:J34) -> 33593.00286 | K35: 6848.558351 | L35: 40441.56121 | N35: =SUM(N33:N34) -> 20220.78061
E38: =E15 -> Importo Lavori Eseguiti | G38: Incidenza Sicurezza | H38: Imponibile | I38: =I15 -> Iva | J38: Importo c.iva | K38: Spese tecniche | L38: Totale | M38: % SAL | N38: Detrazione
C39: ='SAL.30%'!C39 -> Totali SAL N.1 | E39: ='SAL.30%'!E39 -> 6500 | G39: ='SAL.30%'!G39 -> 0 | H39: ='SAL.30%'!H39 -> 6500 | I39: ='SAL.30%'!I39 -> 650 | J39: ='SAL.30%'!J39 -> 7150 | K39: ='SAL.30%'!K39 -> 1457.660466 | L39: ='SAL.30%'!L39 -> 8607.660466 | M39: ='SAL.30%'!M39 -> 0.05125043169 | N39: ='SAL.30%'!N39 -> 88000
C40: ='SAL.60%'!C39 -> Totali SAL N.2 | E40: ='SAL.60%'!E39 -> 0 | G40: ='SAL.60%'!G39 -> 0 | H40: ='SAL.60%'!H39 -> 0 | I40: ='SAL.60%'!I39 -> 0 | J40: ='SAL.60%'!J39 -> 0 | K40: ='SAL.60%'!K39 -> 0 | L40: ='SAL.60%'!L39 -> 0 | M40: ='SAL.60%'!M39 -> 0 | N40: ='SAL.60%'!N39 -> 88000
C41: Totali SAL Finale | E41: =E31+E35 -> 126828.2 | G41: =G31+G35 -> 8032.08 | H41: =H31+H35 -> 134860.28 | I41: =I35+I31 -> 13486.028 | J41: =J35+J31 -> 148346.308 | K41: =K35+K31 -> 30243.15363 | L41: =L35+L31 -> 99551.56923 | M41: =E41/E9 -> 1 | N41: =N35+N31 -> 168211.3553 | P41: =IF(M41>=100%,"V.","") -> V.
K43: =IF(M41>=100%,"","SAL inferiore 100%") -> 
M44: ='Computo-Massimali'!G43 -> Quota a carico cliente : | N44: ='Computo-Massimali'!H43 -> 27360.74994

Sheet Enea SAL Finale
B2: Tipologia Edificio | C2: ='Dati Gen'!B4 -> Edificio Unifamiliare | M2: https://detrazionifiscali.enea.it/creaasseverazione.asp
B3: Data Inizio Lavori | C3: ='Dati Gen'!C30 -> 2021-03-15
B5: Comune Ubicazione | C5: ='Dati Gen'!C7 -> ROMA
B6: Comune Montano | C6: X | D6: SI | F6: NO | G6: Elenco Comuni Montani
B7: Interessato Infrazione | D7: SI | E7: X | F7: NO | G7: Elenco Comuni Infrazioni
B8: Intervento comma 4-Ter | D8: SI | E8: X | F8: NO | G8: 160% Zone Terremotate
B10: Indirizzo | C10: ='Dati Gen'!C8 -> Via Vitaliano | I10: N.Civico | J10: ='Dati Gen'!K8 -> 23 | K10: CAP | L10: ='Dati Gen'!K7 -> 0
B11: Anno di Costruzione Immobile | C11: ='Dati Gen'!C10 -> 0 | G11: ='Dati Gen'!F10 -> Superficie Totale Disperdente : | L11: ='Dati Gen'!K10 -> 0
B12: Edificio in area Metanizzata | C12: X | D12: SI | F12: NO
B13: Autorizzazione Edilizia | C13: ='Dati Gen'!C11 -> Edificio Storico senza Titolo Edilizio | I13: ='Dati Gen'!H11 ->  | J13: =IF('Dati Gen'!I11<>"",'Dati Gen'!I11,"") ->  | K13: ='Dati Gen'!J11 ->  | L13: =IF('Dati Gen'!I13<>"",'Dati Gen'!I13,"") -> 
B15: ='Dati Gen'!B32 -> Relazione ex Legge 10/91 Depositata al Comune in Data | H15: =IF('Dati Gen'!G32<>"",'Dati Gen'!G32,"") -> 44270 | J15: Prot. N. | L15: =IF('Dati Gen'!K32<>"",'Dati Gen'!K32,"") -> 25658
B18: intervento di isolamento termico delle superfici opache verticali, orizzontali e inclinate
B19: Descrizione | G19: Superficie mq | H19: Trasm. Ante | I19: Trasm. Post | J19: Trasm.P. YIE | K19: Confine | L19: Coiben-tazione | M19: Realizzati mq
B20: Pareti Verticali Mattoni Pieni 30cm | G20: 50 | H20: 3 | I20: 1.26 | J20: 0.03 | K20: Esterno | L20: Esterna | M20: 30
B21: Pareti Verticali Pietrame 50cm | G21: 20 | K21: - | L21: -
B22: Coperture Legno | K22: - | L22: -
B23: Coperture Acciaio | K23: - | L23: -
B24: Pavimenti | K24: - | L24: -
K25: - | L25: -
K26: - | L26: -
K27: - | L27: -
K28: - | L28: -
B30: Superficie Totale disperdente oggetto di intervento [mq] | J30: =SUM(G20:G28) -> 70
B31: Spesa Massima Ammissibile | J31: ='SAL.60%'!Q19 -> 50000
B32: Costo Complessivo Previsto in progetto | J32: ='Computo-Massimali'!L19 -> 48998.64257
B33: Spesa Ammessa | J33: =IF(J32<J31,J32,J31) -> 48998.64257
B34: Costo Lavori Realizzati | J34: ='SAL.60%'!L19 -> Versione DEMO
B35: di cui ammessi | J35: =IF(J34<J33,J34,J33) -> 48998.64257
B36: Risparmio di energia primaria non rinnovabile di progetto [kWh/anno]
B40: Intervento di sostituzione degli impianti di climatizzazione invernale esistenti
B41: Descrizione | G41: Tipo Sostituito | H41: P.Nom Sostituito | I41: P.Nom Nuova | J41: Rendim Nomin. | K41: Destinata | L41: Efficienza Riscaldam. hs | M41: Efficienza ACS hw | N41: Tipo Aliment. | O41: Classe Dispositivo Termoreg. Evoluto | P41: Tipo PDC | Q41: Pot. Elettr. Assorb | R41: COP | S41: Superfic. Risc. Da PDC | AD41: Tipo Sostituito
B42: Caldaia a Condensazione | G42: - | H42: 24 | I42: 26 | J42: 0.03 | K42: - | L42: 0 | N42: - | O42: - | P42: Salamoia/Acqua | AD42: -
B43: Pompe calore PDC compr. vapore el. sonde geot. | G43: - | K43: - | N43: - | O43: - | P43: - | AD43: Caldaia Standard
B44: Coperture Legno | G44: - | K44: - | N44: - | O44: - | P44: - | AD44: Caldaia Bassa Temp.
B45: Coperture Acciaio | G45: - | K45: - | N45: - | O45: - | P45: - | AD45: Caldaia Condens. Gas
B46: Pavimenti | G46: - | K46: - | N46: - | O46: - | P46: - | AD46: Caldaia Condens.Gasolio
G47: - | K47: - | N47: - | O47: - | P47: - | AD47: Teleriscaldamento
G48: - | K48: - | N48: - | O48: - | P48: - | AD48: Impianto biomassa
AD49: Altro
B50: Destinati a : Climatizzazione Invernale | G50: X | J50: Spesa Massima Ammissibile | Q50: ='Computo-Massimali'!U26 -> 30000
B51: Climatizzazione estiva | J51: Costo Complessivo Previsto in progetto | Q51: ='Computo-Massimali'!L26 -> 30039.24979
B52: prod. di acqua calda sanitaria | J52: Spesa Ammessa | Q52: =IF(Q51<Q50,Q51,Q50) -> 30000
J53: Costo Lavori Realizzati | Q53: ='SAL.60%'!L26 -> Versione DEMO
J54: di cui ammessi | Q54: =IF(Q53<Q52,Q53,Q52) -> 30000
J55: Risparmio di energia primaria non rinnovabile di progetto [kWh/anno]
B57: Sostituzione degli infissi
B58: Descrizione | G58: Telaio Prima | H58: Vetro Prima | J58: Trasm. Ante | K58: Superfice mq | L58: Telaio Dopo | M58: Vetro Dopo | O58: Trasm. Post | P58: Chius. Oscura
B59: Infissi in Legno 1 Anta Vetro Singolo con 1A2V | G59: Legno | H59: Singolo | J59: 3.5 | K59: 5 | L59: Legno | M59: Singolo | O59: 1.3 | P59: x | AC59: =IF(P59<>"",1,0) -> 1
B60: Portoni Ingresso | G60: Legno | H60: Nessuno | J60: 3.5 | K60: 4 | L60: Legno | M60: Nessuno | O60: 1.3 | AC60: =IF(P60<>"",1,0) -> 0
G61: - | H61: - | L61: - | M61: - | AC61: 0
G62: - | H62: - | L62: - | M62: - | AC62: 0
G63: - | H63: - | L63: - | M63: - | AC63: 0
G64: - | H64: - | L64: - | M64: - | AC64: 0
G65: - | H65: - | L65: - | M65: - | AC65: 0
AC66: =SUM(AC59:AC65) -> 1
B67: Superficie Totale disperdente oggetto di intervento [mq] | J67: =SUM(K59:K65) -> 9
B68: Spesa Massima Ammissibile | J68: =IF(AC66>0,'Computo-Massimali'!U21,'Computo-Massimali'!U20) -> 54545.45455
B69: Costo Complessivo Previsto in progetto | J69: =IF(AC66>0,'Computo-Massimali'!L21,'Computo-Massimali'!L20) -> 16309.37933
B70: Spesa Ammessa | J70: =IF(J69<J68,J69,J68) -> 16309.37933
B71: Costo Lavori Realizzati | J71: =IF(AC66>0,'SAL.60%'!L21,'SAL.60%'!L20) -> 0
B72: di cui ammessi | J72: =IF(J71<J70,J71,J70) -> 0
B73: Risparmio di energia primaria non rinnovabile di progetto [kWh/anno]
B76: Schermature solari e chiusure oscuranti
B77: Descrizione | G77: Tipo Schermatura | H77: Installazione | J77: Superf. Schermatura | K77: Superfice finestra protetta | L77: Resistenza term. suppl m2K/W | M77: Orientamento | N77: Tipo Calcolo | P77: gtot | Q77: Materiale schermatura | S77: Meccan. Regolaz.
B78: Persiane | G78: - | H78: - | J78: 3.5 | K78: 5 | L78: 0.08 | M78: - | N78: - | Q78: - | S78: -
B79: Sportelli Legno | G79: - | H79: - | J79: 3.5 | K79: 4 | M79: - | N79: - | Q79: - | S79: -
G80: - | H80: - | M80: - | N80: - | Q80: - | S80: -
G81: - | H81: - | M81: - | N81: - | Q81: - | S81: -
G82: - | H82: - | M82: - | N82: - | Q82: - | S82: -
G83: - | H83: - | M83: - | N83: - | Q83: - | S83: -
G84: - | H84: - | M84: - | N84: - | Q84: - | S84: -
B86: Spesa Massima Ammissibile | J86: ='Computo-Massimali'!U22 -> 54545.45455
B87: Costo Complessivo Previsto in progetto | J87: ='Computo-Massimali'!L22 -> 0
B88: Spesa Ammessa | J88: =IF(J87<J86,J87,J86) -> 0
B89: Costo Lavori Realizzati | J89: ='SAL.60%'!L22 -> 0
B90: di cui ammessi | J90: =IF(J89<J88,J89,J88) -> 0
B91: Risparmio di energia primaria non rinnovabile di progetto [kWh/anno]
